fUSD/lending_fUSD_20240527
["ID","MTS","AMOUNT","RATE_DAILY","PERIOD"]
[328070358,1716834671246,-500.0,0.00030996,6]
[328070359,1716834671255,-500.0,0.00030996,6]
[328070360,1716834671264,-500.0,0.00030996,6]
[328070361,1716834671274,-500.0,0.00030996,6]
[328070362,1716834671283,-500.0,0.00030996,6]
[328070363,1716834671292,-368.4177113,0.00030996,6]
[328070364,1716834671302,-500.0,0.00030996,6]
[328070365,1716834671311,-500.0,0.00030996,6]
[328070366,1716834671320,-500.0,0.00030996,6]
[328070367,1716834671329,-500.0,0.00030996,6]
[328070368,1716834671338,-500.0,0.00030996,6]
[328070369,1716834671348,-500.0,0.00030996,6]
[328070370,1716834671358,-500.0,0.00030996,6]
[328070371,1716834671368,-500.0,0.00030996,6]
[328070372,1716834671378,-500.0,0.00030996,6]
[328070373,1716834671387,-500.0,0.00030996,6]
[328070374,1716834671397,-500.0,0.00030996,6]
[328070375,1716834671407,-500.0,0.00030996,6]
[328070376,1716834671416,-814.71,0.00030996,6]
[328070377,1716834671425,-500.0,0.00030996,6]
[328070378,1716834671436,-1122.29,0.00030996,6]
[328070379,1716834671445,-500.0,0.00030996,6]
[328070380,1716834671454,-500.0,0.00030996,6]
[328070381,1716834671464,-500.0,0.00030996,6]
[328070382,1716834671472,-500.0,0.00030996,6]
[328070383,1716834671481,-500.0,0.00030996,6]
[328070384,1716834671491,-500.0,0.00030996,6]
[328070385,1716834671501,-500.0,0.00030996,6]
[328070386,1716834671510,-500.0,0.00030996,6]
[328070387,1716834671520,-500.0,0.00030996,6]
[328070388,1716834671530,-509.22,0.00030996,6]
[328070389,1716834671539,-500.0,0.00030996,6]
[328070390,1716834671548,-567.99,0.00030996,6]
[328070391,1716834671558,-1998.84,0.00030996,6]
[328070392,1716834671567,-500.0,0.00030996,6]
[328070393,1716834671577,-926.6,0.00030996,6]
[328070394,1716834671586,-926.6,0.00030996,6]
[328070395,1716834671596,-926.6,0.00030996,6]
[328070396,1716834671605,-500.0,0.00030996,6]
[328070397,1716834671615,-500.0,0.00030996,6]
[328070398,1716834671624,-500.0,0.00030996,6]
[328070399,1716834671633,-648.26,0.00030996,6]
[328070400,1716834671642,-1509.56,0.00030996,6]
[328070401,1716834671651,-500.0,0.00030996,6]
[328070402,1716834671660,-500.0,0.00030996,6]
[328070403,1716834671669,-500.0,0.00030996,6]
[328070404,1716834671679,-632.36,0.00030996,6]
[328070405,1716834671694,-864.8,0.00030996,6]
[328070406,1716834671704,-776.72,0.00030996,6]
[328070407,1716834671713,-500.0,0.00030996,6]
[328070408,1716834671722,-500.0,0.00030996,6]
[328070409,1716834671734,-512.65,0.00030996,6]
[328070410,1716834671744,-512.65,0.00030996,6]
[328070411,1716834671753,-512.65,0.00030996,6]
[328070412,1716834671764,-500.0,0.00030996,6]
[328070413,1716834671773,-514.47407518,0.00030996,6]
[328070414,1716834671783,-500.0,0.00030996,6]
[328070415,1716834671793,-500.0,0.00030996,6]
[328070416,1716834671802,-874.81,0.00030996,6]
[328070417,1716834671811,-500.0,0.00030996,6]
[328070418,1716834671821,-500.0,0.00030996,6]
[328070419,1716834671830,-500.0,0.00030996,6]
[328070420,1716834671839,-500.0,0.00030996,6]
[328070421,1716834671847,-500.0,0.00030996,6]
[328070422,1716834671857,-1090.1,0.00030996,6]
[328070423,1716834671867,-805.46,0.00030996,6]
[328070424,1716834671877,-950.79,0.00030996,6]
[328070425,1716834671885,-500.0,0.00030996,6]
[328070426,1716834671894,-500.0,0.00030996,6]
[328070427,1716834671903,-1304.73,0.00030996,6]
[328070428,1716834671912,-500.0,0.00030996,6]
[328070429,1716834671923,-519.2088194,0.00030996,6]
[328070430,1716834671931,-920.69,0.00030996,6]
[328070431,1716834671940,-500.0,0.00030996,6]
[328070432,1716834671950,-2579.71,0.00030996,6]
[328070433,1716834671959,-873.96,0.00030996,6]
[328070434,1716834671968,-1462.34,0.00030996,6]
[328070435,1716834671977,-924.93,0.00030996,6]
[328070436,1716834671986,-1462.34,0.00030996,6]
[328070437,1716834671997,-502.72320935,0.00030996,6]
[328070438,1716834672006,-1462.34,0.00030996,6]
[328070439,1716834672016,-500.0,0.00030996,6]
[328070440,1716834672026,-500.0,0.00030996,6]
[328070441,1716834672036,-500.0,0.00030996,6]
[328070442,1716834672046,-500.0,0.00030996,6]
[328070443,1716834672056,-500.0,0.00030996,6]
[328070444,1716834672066,-1294.5,0.00030996,6]
[328070445,1716834672076,-500.0,0.00030996,6]
[328070446,1716834672085,-500.0,0.00030996,6]
[328070447,1716834672095,-500.0,0.00030996,6]
[328070448,1716834672105,-500.0,0.00030996,6]
[328070449,1716834672115,-500.0,0.00030996,6]
[328070450,1716834672124,-500.0,0.00030996,6]
[328070451,1716834672133,-500.0,0.00030996,6]
[328070452,1716834672142,-778.89,0.00030996,6]
[328070453,1716834672151,-500.0,0.00030996,6]
[328070454,1716834672161,-500.0,0.00030996,6]
[328070455,1716834672170,-500.0,0.00030996,6]
[328070456,1716834672179,-500.0,0.00030996,6]
[328070457,1716834672189,-500.0,0.00030996,6]
[328070458,1716834672198,-500.0,0.00030996,6]
[328070459,1716834672208,-500.0,0.00030996,6]
[328070460,1716834672217,-567.87,0.00030996,6]
[328070461,1716834672226,-500.0,0.00030996,6]
[328070462,1716834672236,-500.0,0.00030996,6]
[328070463,1716834672246,-500.0,0.00030996,6]
[328070464,1716834672255,-500.0,0.00030996,6]
[328070465,1716834672264,-500.0,0.00030996,6]
[328070466,1716834672274,-500.0,0.00030996,6]
[328070467,1716834672284,-227.59,0.00030996,6]
[328070468,1716834672293,-500.0,0.00030996,6]
[328070469,1716834672303,-500.0,0.00030996,6]
[328070470,1716834672313,-500.0,0.00030996,6]
[328070471,1716834672323,-500.0,0.00030996,6]
[328070472,1716834672332,-500.0,0.00030996,6]
[328070473,1716834672342,-500.0,0.00030996,6]
[328070474,1716834672351,-500.0,0.00030996,6]
[328070475,1716834672361,-500.0,0.00030996,6]
[328070476,1716834672370,-543.97,0.00030996,6]
[328070477,1716834672380,-500.0,0.00030996,6]
[328070478,1716834672390,-534.76,0.00030996,6]
[328070479,1716834672400,-500.0,0.00030996,6]
[328070480,1716834672409,-500.0,0.00030996,6]
[328070481,1716834672419,-816.87,0.00030996,6]
[328070482,1716834672428,-816.87,0.00030996,6]
[328070483,1716834672438,-816.87,0.00030996,6]
[328070484,1716834672447,-500.0,0.00030996,6]
[328070485,1716834672458,-500.0,0.00030996,6]
[328070486,1716834672467,-500.0,0.00030996,6]
[328070487,1716834672477,-1937.19,0.00030996,6]
[328070488,1716834672486,-467.57926045,0.00030996,6]
[328070489,1716834672496,-500.0,0.00030996,6]
[328070490,1716834672505,-500.0,0.00030996,6]
[328070491,1716834672514,-500.0,0.00030996,6]
[328070492,1716834672524,-500.0,0.00030996,6]
[328070493,1716834672534,-983.7,0.00030996,6]
[328070494,1716834672544,-500.0,0.00030996,6]
[328070495,1716834672553,-500.0,0.00030996,6]
[328070496,1716834672563,-174.36165616,0.00030996,6]
[328070497,1716834672574,-659.48,0.00030996,6]
[328070498,1716834672583,-565.98,0.00030996,6]
[328070499,1716834672593,-863.71,0.00030996,6]
[328070500,1716834672603,-502.6,0.00030996,6]
[328070501,1716834672612,-407.24381435,0.00030996,6]
[328070502,1716834672622,-500.0,0.00030996,6]
[328070503,1716834672631,-500.0,0.00030996,6]
[328070504,1716834672640,-500.0,0.00030996,6]
[328070505,1716834672650,-500.0,0.00030996,6]
[328070506,1716834672660,-1883.27,0.00030996,6]
[328070507,1716834672669,-778.69,0.00030996,6]
[328070508,1716834672678,-500.0,0.00030996,6]
[328070509,1716834672694,-500.0,0.00030996,6]
[328070510,1716834672705,-500.0,0.00030996,6]
[328070511,1716834672714,-848.79,0.00030996,6]
[328070512,1716834672724,-547.37,0.00030996,6]
[328070513,1716834672735,-500.0,0.00030996,6]
[328070514,1716834672745,-500.0,0.00030996,6]
[328070515,1716834672753,-1576.72,0.00030996,6]
[328070516,1716834672763,-500.0,0.00030996,6]
[328070517,1716834672773,-1013.26,0.00030996,6]
[328070518,1716834672783,-1400.98,0.00030996,6]
[328070519,1716834672792,-1412.82,0.00030996,6]
[328070520,1716834672801,-500.0,0.00030996,6]
[328070521,1716834672810,-761.73,0.00030996,6]
[328070522,1716834672819,-5321.95,0.00030996,6]
[328070523,1716834672828,-500.0,0.00030996,6]
[328070524,1716834672838,-500.0,0.00030996,6]
[328070525,1716834672848,-503.40522825,0.00030996,6]
[328070526,1716834672857,-500.0,0.00030996,6]
[328070527,1716834672867,-500.0,0.00030996,6]
[328070528,1716834672876,-500.0,0.00030996,6]
[328070529,1716834672886,-500.0,0.00030996,6]
[328070530,1716834672895,-10262.97,0.00030996,6]
[328070531,1716834672905,-500.0,0.00030996,6]
[328070532,1716834672914,-500.0,0.00030996,6]
[328070533,1716834672923,-500.0,0.00030996,6]
[328070534,1716834672932,-627.0,0.00030996,6]
[328070535,1716834672941,-170.92720783,0.00030996,2]
[328070536,1716834672951,-10975.0346,0.00030997,2]
[328070537,1716834672960,-100000.0,0.00030997,2]
[328070538,1716834672969,-151.0,0.00030997,7]
[328070539,1716834672978,-151.0,0.00030997,7]
[328070540,1716834672987,-151.0,0.00030997,7]
[328070541,1716834672996,-151.0,0.00030997,7]
[328070542,1716834673006,-151.0,0.00030997,7]
[328070543,1716834673015,-151.0,0.00030997,7]
[328070544,1716834673024,-151.0,0.00030997,7]
[328070545,1716834673033,-151.0,0.00030997,7]
[328070546,1716834673043,-153.047295,0.00030997,7]
[328070547,1716834673052,-151.0,0.00030997,7]
[328070548,1716834673061,-151.0,0.00030997,7]
[328070549,1716834673070,-151.0,0.00030997,7]
[328070550,1716834673080,-151.0,0.00030997,7]
[328070551,1716834673089,-175.371095,0.00030997,7]
[328070552,1716834673098,-151.0,0.00030997,7]
[328070553,1716834673108,-151.0,0.00030997,7]
[328070554,1716834673117,-151.0,0.00030997,7]
[328070555,1716834673128,-151.0,0.00030997,7]
[328070556,1716834673138,-151.0,0.00030997,7]
[328070557,1716834673147,-151.0,0.00030997,7]
[328070558,1716834673158,-151.0,0.00030997,7]
[328070559,1716834673168,-151.0,0.00030997,7]
[328070560,1716834673177,-500.0,0.00030997,6]
[328070561,1716834673186,-500.0,0.00030997,6]
[328070562,1716834673195,-500.0,0.00030997,6]
[328070563,1716834673204,-151.0,0.00030997,7]
[328070564,1716834673215,-151.0,0.00030997,7]
[328070565,1716834673224,-298.840731,0.00030997,7]
[328070566,1716834673234,-500.0,0.00030997,6]
[328070567,1716834673244,-151.0,0.00030997,7]
[328070568,1716834673253,-151.0,0.00030997,7]
[328070569,1716834673262,-500.0,0.00030997,6]
[328070570,1716834673272,-500.0,0.00030997,6]
[328070571,1716834673281,-500.0,0.00030997,6]
[328070572,1716834673290,-660.11,0.00030997,6]
[328070573,1716834673419,-500.0,0.00030997,6]
[328070574,1716834673429,-695.97,0.00030997,6]
[328070575,1716834673438,-845.55,0.00030997,6]
[328070576,1716834673447,-509.86892489,0.00030997,6]
[328070577,1716834673457,-864.14,0.00030997,6]
[328070578,1716834673466,-212.828058,0.00030997,7]
[328070579,1716834673476,-212.828058,0.00030997,7]
[328070580,1716834673485,-212.828058,0.00030997,7]
[328070581,1716834673495,-500.0,0.00030997,6]
[328070582,1716834673504,-212.828058,0.00030997,7]
[328070583,1716834673514,-212.828058,0.00030997,7]
[328070584,1716834673523,-212.828058,0.00030997,7]
[328070585,1716834673532,-341.996036,0.00030997,7]
[328070586,1716834673542,-341.996036,0.00030997,7]
[328070587,1716834673551,-341.996036,0.00030997,7]
[328070588,1716834673560,-253.442094,0.00030997,7]
[328070589,1716834673571,-253.442094,0.00030997,7]
[328070590,1716834673580,-588.36,0.00030997,6]
[328070591,1716834673590,-253.442094,0.00030997,7]
[328070592,1716834673599,-341.996036,0.00030997,7]
[328070593,1716834673609,-341.996036,0.00030997,7]
[328070594,1716834673618,-341.996036,0.00030997,7]
[328070595,1716834673629,-253.442094,0.00030997,7]
[328070596,1716834673639,-253.442094,0.00030997,7]
[328070597,1716834673649,-151.0,0.00030997,7]
[328070598,1716834673659,-253.442094,0.00030997,7]
[328070599,1716834673669,-154.125404,0.00030997,7]
[328070600,1716834673678,-715.87,0.00030997,6]
[328070601,1716834673690,-500.0,0.00030997,6]
[328070602,1716834673699,-151.0,0.00030997,7]
[328070603,1716834673708,-151.0,0.00030997,7]
[328070604,1716834673718,-257.22715,0.00030997,7]
[328070605,1716834673727,-500.0,0.00030997,6]
[328070606,1716834673737,-500.0,0.00030997,6]
[328070607,1716834673746,-500.0,0.00030997,6]
[328070608,1716834673755,-500.0,0.00030997,6]
[328070609,1716834673765,-500.0,0.00030997,6]
[328070610,1716834673774,-500.0,0.00030997,6]
[328070611,1716834673783,-500.0,0.00030997,6]
[328070612,1716834673792,-521.38,0.00030997,6]
[328070613,1716834673802,-500.0,0.00030997,6]
[328070614,1716834673811,-500.0,0.00030997,6]
[328070615,1716834673819,-500.0,0.00030997,6]
[328070616,1716834673830,-500.0,0.00030997,6]
[328070617,1716834673840,-531.17,0.00030997,6]
[328070618,1716834673851,-500.0,0.00030997,6]
[328070619,1716834673860,-500.0,0.00030997,6]
[328070620,1716834673869,-500.0,0.00030997,6]
[328070621,1716834673878,-500.0,0.00030997,6]
[328070622,1716834673887,-500.0,0.00030997,6]
[328070623,1716834673896,-500.0,0.00030997,6]
[328070624,1716834673905,-500.0,0.00030997,6]
[328070625,1716834673915,-500.0,0.00030997,6]
[328070626,1716834673927,-500.0,0.00030997,6]
[328070627,1716834673937,-500.0,0.00030997,6]
[328070628,1716834673947,-500.0,0.00030997,6]
[328070629,1716834673957,-500.0,0.00030997,6]
[328070630,1716834673967,-500.0,0.00030997,6]
[328070631,1716834673976,-500.0,0.00030997,6]
[328070632,1716834673985,-500.0,0.00030997,6]
[328070633,1716834673996,-509.39460903,0.00030997,6]
[328070634,1716834674005,-500.0,0.00030997,6]
[328070635,1716834674015,-500.0,0.00030997,6]
[328070636,1716834674024,-500.0,0.00030997,6]
[328070637,1716834674034,-500.0,0.00030997,6]
[328070638,1716834674043,-500.0,0.00030997,6]
[328070639,1716834674055,-500.0,0.00030997,6]
[328070640,1716834674064,-500.0,0.00030997,6]
[328070641,1716834674073,-500.0,0.00030997,6]
[328070642,1716834674082,-500.0,0.00030997,6]
[328070643,1716834674091,-500.0,0.00030997,6]
[328070644,1716834674101,-500.0,0.00030997,6]
[328070645,1716834674111,-500.0,0.00030997,6]
[328070646,1716834674120,-500.0,0.00030997,6]
[328070647,1716834674129,-500.0,0.00030997,6]
[328070648,1716834674138,-595.7,0.00030997,6]
[328070649,1716834674147,-500.0,0.00030997,6]
[328070650,1716834674155,-612.51551651,0.00030997,6]
[328070651,1716834674164,-500.0,0.00030997,6]
[328070652,1716834674173,-500.0,0.00030997,6]
[328070653,1716834674181,-500.0,0.00030997,6]
[328070654,1716834674190,-500.0,0.00030997,6]
[328070655,1716834674199,-500.0,0.00030997,6]
[328070656,1716834674208,-500.0,0.00030997,6]
[328070657,1716834674217,-500.0,0.00030997,6]
[328070658,1716834674227,-500.0,0.00030997,6]
[328070659,1716834674236,-500.0,0.00030997,6]
[328070660,1716834674246,-500.0,0.00030997,6]
[328070661,1716834674255,-500.0,0.00030997,6]
[328070662,1716834674264,-500.0,0.00030997,6]
[328070663,1716834674273,-500.0,0.00030997,6]
[328070664,1716834674282,-500.0,0.00030997,6]
[328070665,1716834674292,-500.0,0.00030997,6]
[328070666,1716834674301,-500.0,0.00030997,6]
[328070667,1716834674310,-500.0,0.00030997,6]
[328070668,1716834674319,-500.0,0.00030997,6]
[328070669,1716834674328,-500.0,0.00030997,6]
[328070670,1716834674337,-500.0,0.00030997,6]
[328070671,1716834674346,-500.0,0.00030997,6]
[328070672,1716834674355,-500.0,0.00030997,6]
[328070673,1716834674365,-500.0,0.00030997,6]
[328070674,1716834674374,-500.0,0.00030997,6]
[328070675,1716834674383,-500.0,0.00030997,6]
[328070676,1716834674392,-500.0,0.00030997,6]
[328070677,1716834674401,-518.23,0.00030997,6]
[328070678,1716834674410,-500.0,0.00030997,6]
[328070679,1716834674420,-500.0,0.00030997,6]
[328070680,1716834674429,-500.0,0.00030997,6]
[328070681,1716834674438,-583.05,0.00030997,6]
[328070682,1716834674448,-509.54,0.00030997,6]
[328070683,1716834674457,-500.0,0.00030997,6]
[328070684,1716834674466,-500.0,0.00030997,6]
[328070685,1716834674475,-500.0,0.00030997,6]
[328070686,1716834674485,-966.47,0.00030997,6]
[328070687,1716834674495,-687.75,0.00030997,6]
[328070688,1716834674505,-922.72,0.00030997,6]
[328070689,1716834674514,-500.0,0.00030999,6]
[328070690,1716834674523,-693.36,0.00030999,6]
[328070691,1716834674532,-1028.46,0.00030999,6]
[328070692,1716834674542,-733.1,0.00030999,6]
[328070693,1716834674551,-775.66,0.00030999,6]
[328070694,1716834674561,-697.23,0.00030999,6]
[328070695,1716834674570,-1001.56,0.00030999,6]
[328070696,1716834674579,-1426.77,0.00030999,6]
[328070697,1716834674589,-500.0,0.00030999,6]
[328070698,1716834674598,-11216.87,0.00030999,6]
[328070699,1716834674607,-500.0,0.00030999,6]
[328070700,1716834674616,-500.0,0.00030999,6]
[328070701,1716834674626,-586.16,0.00030999,6]
[328070702,1716834674635,-1200.0,0.00031,2]
[328070703,1716834674644,-1000.0,0.00031,3]
[328070704,1716834674653,-1000.0,0.00031,3]
[328070705,1716834674664,-1000.0,0.00031,3]
[328070706,1716834674674,-1000.0,0.00031,3]
[328070707,1716834674685,-1000.0,0.00031,3]
[328070708,1716834674701,-1000.0,0.00031,3]
[328070709,1716834674716,-1000.0,0.00031,3]
[328070710,1716834674731,-1000.0,0.00031,3]
[328070711,1716834674742,-1000.0,0.00031,3]
[328070712,1716834674757,-1000.0,0.00031,3]
[328070713,1716834674774,-364.49648891,0.00031094,4]
[328070714,1716834674788,-1386.55437292,0.00031094,4]
[328070715,1716834674800,-406.78617881,0.00031094,4]
[328070716,1716834674817,-2944.65531306,0.00031094,2]
[328070717,1716834674830,-6228.18742137,0.00031094,4]
[328070718,1716834674842,-151.0,0.00031094,7]
[328070719,1716834674855,-151.0,0.00031094,7]
[328070720,1716834674869,-151.0,0.00031094,7]
[328070721,1716834674883,-151.0,0.00031094,7]
[328070722,1716834674893,-500.0,0.00031094,6]
[328070723,1716834674905,-686.62,0.00031094,6]
[328070724,1716834674918,-1926.19,0.00031094,6]
[328070725,1716834674932,-500.0,0.00031094,6]
[328070726,1716834674945,-1122.29,0.00031094,6]
[328070727,1716834674960,-567.99,0.00031094,6]
[328070728,1716834674975,-1509.56,0.00031094,6]
[328070729,1716834674986,-632.36,0.00031094,6]
[328070730,1716834674998,-614.35334704,0.00031094,6]
[328070731,1716834675010,-500.0,0.00031094,6]
[328070732,1716834675024,-950.79,0.00031094,6]
[328070733,1716834675037,-920.69,0.00031094,6]
[328070734,1716834675048,-873.96,0.00031094,6]
[328070735,1716834675061,-382.88,0.00031094,6]
[328070736,1716834675076,-219.56,0.00031094,6]
[328070737,1716834675087,-500.0,0.00031094,6]
[328070738,1716834675098,-693.36,0.00031094,6]
[328070739,1716834675110,-693.36,0.00031094,6]
[328070740,1716834675122,-1028.46,0.00031094,6]
[328070741,1716834675133,-1028.46,0.00031094,6]
[328070742,1716834675146,-733.1,0.00031094,6]
[328070743,1716834675159,-733.1,0.00031094,6]
[328070744,1716834675170,-775.66,0.00031094,6]
[328070745,1716834675182,-775.66,0.00031094,6]
[328070746,1716834675195,-500.0,0.00031094,6]
[328070747,1716834675206,-500.0,0.00031094,6]
[328070748,1716834675219,-697.23,0.00031094,6]
[328070749,1716834675231,-697.23,0.00031094,6]
[328070750,1716834675244,-543.97,0.00031094,6]
[328070751,1716834675256,-534.76,0.00031094,6]
[328070752,1716834675268,-1001.56,0.00031094,6]
[328070753,1716834675280,-1001.56,0.00031094,6]
[328070754,1716834675292,-1937.19,0.00031094,6]
[328070755,1716834675304,-983.7,0.00031094,6]
[328070756,1716834675317,-1426.77,0.00031094,6]
[328070757,1716834675330,-1426.77,0.00031094,6]
[328070758,1716834675342,-659.48,0.00031094,6]
[328070759,1716834675354,-778.69,0.00031094,6]
[328070760,1716834675367,-500.0,0.00031094,6]
[328070761,1716834675379,-150.0,0.00031094,7]
[328070762,1716834675391,-1576.72,0.00031094,6]
[328070763,1716834675402,-500.0,0.00031094,6]
[328070764,1716834675414,-500.0,0.00031094,6]
[328070765,1716834675425,-416.71,0.00031094,6]
[328070766,1716834675436,-11216.87,0.00031094,6]
[328070767,1716834675447,-11216.87,0.00031094,6]
[328070768,1716834675458,-500.0,0.00031094,6]
[328070769,1716834675469,-500.0,0.00031094,6]
[328070770,1716834675480,-5321.95,0.00031094,6]
[328070771,1716834675493,-500.0,0.00031094,6]
[328070772,1716834675504,-500.0,0.00031094,6]
[328070773,1716834675516,-2412.28211908,0.00031094,6]
[328070774,1716834676322,-342.32580734,0.00030136,6]
[328070775,1716834676336,-221.56904741,0.00030995,2]
[328070776,1716834676350,-1921.68376535,0.00031094,6]
[328070777,1716834676365,-693.40384,0.00031094,6]
[328070778,1716834676382,-824.59977352,0.00031094,6]
[328070779,1716834676397,-4411.00050205,0.00031094,6]
[328070780,1716834676410,-500.0,0.00031095,6]
[328070781,1716834676423,-500.0,0.00031095,6]
[328070782,1716834676436,-500.0,0.00031095,6]
[328070783,1716834676449,-294.11803806,0.00031095,6]
[328070784,1716834676461,-500.0,0.00031095,6]
[328070785,1716834676473,-500.0,0.00031095,6]
[328070786,1716834676486,-610.34,0.00031095,6]
[328070787,1716834676500,-500.0,0.00031095,6]
[328070788,1716834676513,-500.0,0.00031095,6]
[328070789,1716834676526,-500.0,0.00031095,6]
[328070790,1716834676539,-207.1997487,0.00031095,6]
[328070791,1716834676552,-500.0,0.00031095,6]
[328070792,1716834676566,-500.0,0.00031095,6]
[328070793,1716834676580,-500.0,0.00031095,6]
[328070794,1716834676592,-500.0,0.00031095,6]
[328070795,1716834676602,-500.0,0.00031095,6]
[328070796,1716834676762,-500.0,0.00031095,6]
[328070797,1716834676775,-500.0,0.00031095,6]
[328070798,1716834676785,-500.0,0.00031095,6]
[328070799,1716834676794,-500.0,0.00031095,6]
[328070800,1716834676803,-192.4929016,0.00031095,6]
[328070801,1716834676812,-500.0,0.00031095,6]
[328070802,1716834676821,-500.0,0.00031095,6]
[328070803,1716834676830,-151.0,0.00031095,7]
[328070804,1716834676840,-500.0,0.00031095,6]
[328070805,1716834676848,-500.0,0.00031095,6]
[328070806,1716834676858,-500.0,0.00031095,6]
[328070807,1716834676867,-564.54103584,0.00031095,6]
[328070808,1716834676875,-151.0,0.00031095,7]
[328070809,1716834676885,-151.0,0.00031095,7]
[328070810,1716834676894,-500.0,0.00031095,6]
[328070811,1716834676903,-500.0,0.00031095,6]
[328070812,1716834676913,-151.0,0.00031095,7]
[328070813,1716834676922,-151.0,0.00031095,7]
[328070814,1716834676931,-500.0,0.00031095,6]
[328070815,1716834676940,-500.0,0.00031095,6]
[328070816,1716834676949,-500.0,0.00031095,6]
[328070817,1716834676959,-500.0,0.00031095,6]
[328070818,1716834676968,-248.75,0.00031095,6]
[328070819,1716834676978,-500.0,0.00031095,6]
[328070820,1716834676987,-500.0,0.00031095,6]
[328070821,1716834676998,-500.0,0.00031095,6]
[328070822,1716834677007,-500.0,0.00031095,6]
[328070823,1716834677016,-500.0,0.00031095,6]
[328070824,1716834677025,-151.0,0.00031095,7]
[328070825,1716834677034,-500.0,0.00031095,6]
[328070826,1716834677043,-500.0,0.00031095,6]
[328070827,1716834677052,-151.0,0.00031095,7]
[328070828,1716834677061,-280.13,0.00031095,6]
[328070829,1716834677071,-611.12,0.00031095,6]
[328070830,1716834677079,-500.0,0.00031095,6]
[328070831,1716834677088,-151.0,0.00031095,7]
[328070832,1716834677098,-151.0,0.00031095,7]
[328070833,1716834677107,-500.0,0.00031095,6]
[328070834,1716834677117,-151.0,0.00031095,7]
[328070835,1716834677126,-151.0,0.00031095,7]
[328070836,1716834677138,-500.0,0.00031095,6]
[328070837,1716834677146,-500.0,0.00031095,6]
[328070838,1716834677155,-500.0,0.00031095,6]
[328070839,1716834677165,-500.0,0.00031095,6]
[328070840,1716834677174,-500.0,0.00031095,6]
[328070841,1716834677183,-500.0,0.00031095,6]
[328070842,1716834677192,-500.0,0.00031095,6]
[328070843,1716834677201,-496.16,0.00031095,6]
[328070844,1716834677211,-500.0,0.00031095,6]
[328070845,1716834677220,-500.0,0.00031095,6]
[328070846,1716834677229,-500.0,0.00031095,6]
[328070847,1716834677238,-500.0,0.00031095,6]
[328070848,1716834677248,-500.0,0.00031095,6]
[328070849,1716834677256,-194.51514606,0.00031095,6]
[328070850,1716834677266,-229.94502202,0.00031095,6]
[328070851,1716834677274,-73.00708974,0.00031095,6]
[328070852,1716834677291,-426.99291026,0.00031095,6]
[328070853,1716834677299,-215.69,0.00031095,6]
[328070854,1716834677309,-151.0,0.00031095,7]
[328070855,1716834677318,-155.67,0.00031095,6]
[328070856,1716834677327,-434.40031512,0.00031095,6]
[328070857,1716834677336,-194.61507984,0.00031095,6]